fUST/lending_fUST_20250322
["ID","MTS","AMOUNT","RATE_DAILY","PERIOD"]
[356528385,1742620232590,-161.14922926,0.00032877,2]
[356528386,1742620232600,-206.02239071,0.00033025,2]
[356528387,1742620232610,-187.7342896,0.00033358,4]
[356528388,1742620232621,-206.02239071,0.0003345,2]
[356528389,1742620232631,-1000.0,0.00033679,5]
[356528390,1742620232641,-1000.0,0.00033679,5]
[356528391,1742620232650,-1000.0,0.00033679,5]
[356528392,1742620232660,-392.24214102,0.00033714,7]
[356528393,1742620232670,-206.02239071,0.00033875,2]
[356528394,1742620232680,-500.0,0.00034195,5]
[356528395,1742620232688,-298.60244033,0.00034195,5]
[356528396,1742620232698,-973.00996401,0.000342,2]
[356528397,1742620232713,-397.7993577,0.000342,2]
[356528398,1742620232722,-834.31595416,0.00034229,2]
[356528399,1742620232731,-500.0,0.00034273,5]
[356528400,1742620232741,-150.38483231,0.00034273,5]
[356528401,1742620232750,-600.0,0.00034279,2]
[356528402,1742620232759,-1311.93597148,0.0003429,16]
[356528403,1742620232767,-10896.44722786,0.0003429,16]
[356528433,1742620240284,-487.44266572,0.0003429,16]
[356528434,1742620240293,-20976.1361959,0.0003429,2]
[356528435,1742620240304,-1531.46816773,0.000343,2]
[356528436,1742620240314,-206.02239071,0.000343,2]
[356528438,1742620240323,-168485.69057412,0.000343,2]
[356528441,1742620240346,-418.70087984,0.000343,2]
[356528442,1742620240358,-2664.71220376,0.000343,2]
[356528456,1742620243067,-3705.33468584,0.000343,2]
[356528457,1742620243203,-2933.91775324,0.000343,2]
[356528487,1742620267970,500.0,0.00027397,5]
[356528488,1742620268014,478.30206851,0.00028767,5]
[356528489,1742620268036,521.69793149,0.00028767,5]
[356528491,1742621132179,-459.34079975,0.000252,14]
[356528492,1742621132199,-591.58951222,0.00029384,2]
[356528493,1742621132223,-546.62664824,0.00031032,2]
[356528494,1742621132244,-66.67591503,0.00031032,2]
[356528499,1742621234128,-334.23333426,0.00025205,2]
[356528500,1742621252572,-719.69161503,0.00025205,2]
[356528501,1742621252619,-160.0,0.0003102,2]
[356528502,1742621252641,-600.0,0.00031711,2]
[356528503,1742621252662,-250.0,0.0003172,2]
[356528504,1742621252683,-2622.3098932,0.0003173,2]
[356528505,1742621252707,-157.378608,0.0003186,16]
[356528506,1742621252731,-208.24866188,0.000319,6]
[356528507,1742621252753,-169.473224,0.00031955,2]
[356528508,1742621252774,-400.0,0.00031972,2]
[356528509,1742621252794,-353.90910137,0.00031972,2]
[356528510,1742621252816,-417.79203531,0.00031973,2]
[356528523,1742621432308,-200.3949749,0.0003,2]
[356528524,1742621432317,-318.33524999,0.00031973,2]
[356528525,1742621432425,-497.19086489,0.00031973,2]
[356528539,1742621438404,-1209.23059611,0.00031973,2]
[356528540,1742621438413,-197.219715,0.00032006,2]
[356528541,1742621438422,-169.473224,0.00032594,2]
[356528542,1742621438432,-400.0,0.00032699,2]
[356528543,1742621438441,-190.5,0.000327,31]
[356528544,1742621438451,-190.5,0.000327,31]
[356528545,1742621438460,-190.5,0.000327,31]
[356528546,1742621438470,-190.5,0.000327,31]
[356528547,1742621438479,-190.5,0.000327,31]
[356528548,1742621438488,-190.5,0.000327,31]
[356528549,1742621438497,-190.5,0.000327,31]
[356528550,1742621438506,-190.5,0.000327,31]
[356528551,1742621438515,-190.5,0.000327,31]
[356528552,1742621438525,-190.5,0.000327,31]
[356528553,1742621438534,-190.5,0.000327,31]
[356528554,1742621438543,-190.5,0.000327,31]
[356528555,1742621438553,-500.0,0.000327,5]
[356528556,1742621438562,-181.41934414,0.00032877,2]
[356528557,1742621438571,-208.24866188,0.000329,6]
[356528558,1742621438580,-150.0,0.0003294,2]
[356528559,1742621438589,-169.473224,0.00033233,2]
[356528560,1742621438600,-150.0,0.00033379,2]
[356528561,1742621438609,-150.0,0.00033575,2]
[356528562,1742621438619,-177.51881111,0.00033728,2]
[356528563,1742621438628,-160.0,0.00033747,2]
[356528564,1742621438639,-1348.09194721,0.00034,7]
[356528591,1742621440404,-2153.90805279,0.00034,7]
[356528593,1742621440414,-834.31595416,0.00034036,2]
[356528595,1742621440423,-347.35276632,0.00034197,2]
[356528597,1742621440432,-228.3338291,0.00034279,2]
[356528599,1742621440441,-302.0,0.00034279,2]
[356528601,1742621440450,-167.59846584,0.0003429,2]
[356528603,1742621440459,-702.2367026,0.00034299,2]
[356528605,1742621440469,-156.09852351,0.000343,2]
[356528607,1742621440478,-500.0,0.000343,13]
[356528609,1742621440487,-500.0,0.000343,5]
[356528610,1742621440496,-547.60573443,0.000343,5]
[356528611,1742621440505,-500.0,0.000343,5]
[356528612,1742621440514,-500.0,0.000343,13]
[356528613,1742621440523,-198.11886231,0.00034389,2]
[356528614,1742621440532,-503.69261194,0.0003439,30]
[356528615,1742621440541,-3610.31,0.0003452,21]
[356528616,1742621440550,-1449.93,0.0003452,21]
[356528617,1742621440559,-2636.2,0.0003452,21]
[356528619,1742621440568,-167.59846583,0.00034627,2]
[356528621,1742621440577,-1324.14246843,0.00034728,12]
[356528622,1742621440587,-500.0,0.00034764,5]
[356528623,1742621440595,-500.0,0.00034793,2]
[356528624,1742621440604,-312.80756274,0.00034793,2]
[356528626,1742621440616,-187.19243726,0.00034793,2]
[356528628,1742621440625,-500.0,0.00034793,2]
[356528630,1742621440634,-500.0,0.00034793,2]
[356528632,1742621440643,-500.0,0.00034793,2]
[356528633,1742621440652,-3610.31,0.00034794,21]
[356528634,1742621440661,-1449.93,0.00034794,21]
[356528635,1742621440670,-2636.2,0.00034794,21]
[356528636,1742621440679,-151.0,0.00034794,14]
[356528637,1742621440688,-151.0,0.00034794,14]
[356528638,1742621440696,-274.56949872,0.00034899,7]
[356528639,1742621440705,-3747.98114347,0.000349,2]
[356528647,1742621440778,-165.94162751,0.000349,2]
[356528653,1742621440824,-3255.34489603,0.000349,2]
[356528711,1742621443141,-87846.32990374,0.000349,2]
[356528712,1742621443153,-3474.85240186,0.000349,2]
[356528713,1742621443202,-10234.4,0.000349,2]
[356528714,1742621443214,-8947.07792414,0.000349,2]
[356528715,1742621443225,-1728.16160199,0.000349,2]
[356528716,1742621443236,-3398.93037837,0.000349,2]
[356528717,1742621443247,-504.11998325,0.000349,2]
[356528718,1742621443258,-4206.21136439,0.000349,2]
[356528719,1742621443280,-7265.59536499,0.000349,2]
[356528720,1742621443340,-194.37163146,0.000349,2]
[356528721,1742621443351,-15346.21369141,0.000349,2]
[356528724,1742621446391,-673.20034875,0.000349,2]
[356528725,1742621446402,-789.19747044,0.000349,2]
[356528726,1742621446413,-55715.82081302,0.000349,2]
[356528727,1742621446523,-37.13703714,0.000349,2]
[356528728,1742622358113,-250.0,0.00031594,2]
[356528729,1742622358134,-157.4875844,0.00031709,2]
[356528730,1742622358153,-2656.2271935,0.00031719,2]
[356528731,1742622358174,-182.640625,0.00031956,2]
[356528732,1742622358194,-157.378609,0.00032218,21]
[356528733,1742622358214,-400.0,0.00032699,2]
[356528734,1742622358239,-183.3,0.000327,31]
[356528735,1742622358263,-183.3,0.000327,31]
[356528736,1742622358286,-183.3,0.000327,31]
[356528737,1742622358308,-183.3,0.000327,31]
[356528738,1742622358333,-183.3,0.000327,31]
[356528739,1742622358356,-183.3,0.000327,31]
[356528740,1742622358380,-183.3,0.000327,31]
[356528741,1742622358404,-183.3,0.000327,31]
[356528742,1742622358428,-183.3,0.000327,31]
[356528743,1742622358452,-183.3,0.000327,31]
[356528744,1742622358475,-183.3,0.000327,31]
[356528745,1742622358499,-183.3,0.000327,31]
[356528746,1742622358519,-2731.81271882,0.00032877,5]
[356528826,1742622632692,-857.70967219,0.00032017,2]
[356528829,1742622632703,-543.57643731,0.00032017,2]
[356528831,1742622632713,-400.0,0.00032699,2]
[356528833,1742622632722,-161.32,0.000327,31]
[356528834,1742622632732,-161.32,0.000327,31]
[356528836,1742622632741,-161.32,0.000327,31]
[356528838,1742622632750,-161.32,0.000327,31]
[356528840,1742622632760,-161.32,0.000327,31]
[356528843,1742622632771,-161.32,0.000327,31]
[356528845,1742622632782,-161.32,0.000327,31]
[356528846,1742622632791,-161.32,0.000327,31]
[356528849,1742622632801,-161.32,0.000327,31]
[356528850,1742622632811,-161.32,0.000327,31]
[356528853,1742622632820,-161.32,0.000327,31]
[356528855,1742622632830,-161.32,0.000327,31]
[356528857,1742622632840,-1513.63787727,0.00032713,7]
[356528859,1742622632849,-208.24866188,0.000329,6]
[356528861,1742622632859,-1140.64182303,0.00033535,2]
[356528863,1742622632868,-622.2,0.00033575,2]
[356528865,1742622632878,-500.0,0.00033594,7]
[356528866,1742622632888,-275.20911477,0.00033594,7]
[356528868,1742622632898,-500.0,0.00033594,7]
[356528870,1742622632907,-447.67665197,0.00033594,7]
[356528872,1742622632917,-24900.0,0.00033595,2]
[356528874,1742622632927,-500.0,0.00034313,13]
[356528876,1742622632936,-500.0,0.00034321,13]
[356528879,1742622632945,-785.21052269,0.00034675,11]
[356528881,1742622632955,-153.23765807,0.0003489,2]
[356528882,1742622632964,-500.0,0.00034899,2]
[356528885,1742622632974,-9572.58003574,0.000349,2]
[356529770,1742622643843,-2467.89153666,0.000349,2]
[356530010,1742622646424,-2428.64084564,0.000349,2]
[356530011,1742622646434,-167.59846583,0.000349,2]
[356530012,1742622646445,-1048.16279549,0.000349,2]
[356530013,1742622646454,-3732.21861012,0.0003499,30]
[356530014,1742622646464,-192.1986491,0.00034999,7]
[356530015,1742622646473,-4961.0834015,0.00035,35]
[356530016,1742622646484,-617.24976902,0.00035,35]
[356530103,1742623100573,34372.83760937,0.00018,2]
[356530104,1742623537170,-160.0,0.00026179,2]
[356530105,1742623537192,-250.0,0.00032356,2]
[356530106,1742623537217,-257.4944863,0.00032415,2]
[356530107,1742623537241,-400.0,0.00032517,2]
[356530108,1742623537263,-3658.87362677,0.00032518,2]
[356530161,1742623832649,-380.9900469,0.00032518,2]
[356530247,1742623838501,-2287.97467153,0.00032518,2]
[356530248,1742623838511,-400.0,0.00032699,2]
[356530249,1742623838520,-205.26384727,0.000327,31]
[356530250,1742623838530,-152.65,0.000327,31]
[356530251,1742623838539,-152.65,0.000327,31]
[356530252,1742623838549,-152.65,0.000327,31]
[356530253,1742623838559,-152.65,0.000327,31]
[356530255,1742623838568,-152.65,0.000327,31]
[356530257,1742623838577,-152.65,0.000327,31]
[356530259,1742623838586,-152.65,0.000327,31]
[356530260,1742623838595,-152.65,0.000327,31]
[356530261,1742623838605,-152.65,0.000327,31]
[356530263,1742623838614,-152.65,0.000327,31]
[356530264,1742623838623,-152.65,0.000327,31]
[356530266,1742623838633,-208.309498,0.000329,6]
[356530267,1742623838642,-500.0,0.00032967,5]
[356530268,1742623838651,-160.85296133,0.00033444,7]
[356530269,1742623838661,-422.0,0.00033445,2]
[356530270,1742623838670,-19696.14994938,0.00033445,2]
[356530282,1742623843820,-653.90118238,0.00033445,2]
[356530291,1742624730129,-400.0,0.00032699,2]
[356530292,1742624730150,-198.0,0.000327,31]
[356530293,1742624730178,-152.67,0.000327,31]
[356530294,1742624730205,-152.67,0.000327,31]
[356530295,1742624730232,-152.67,0.000327,31]
[356530296,1742624730262,-152.67,0.000327,31]
[356530297,1742624730290,-152.67,0.000327,31]
[356530298,1742624730322,-152.67,0.000327,31]
[356530299,1742624730351,-152.67,0.000327,31]
[356530300,1742624730381,-152.67,0.000327,31]
[356530301,1742624730409,-152.67,0.000327,31]
[356530302,1742624730438,-152.67,0.000327,31]
[356530303,1742624730459,-1975.09780668,0.0003319,7]
[356530318,1742624906035,-152.67,0.000327,31]
[356530319,1742624907429,-152.67,0.000327,31]
[356530320,1742624907457,-152.67,0.000327,31]
[356530321,1742624907487,-152.67,0.000327,31]
[356530322,1742624907517,-45.24867543,0.000327,31]
[356530325,1742624926032,-107.42132457,0.000327,31]
[356530326,1742624926060,-87.8898366,0.000327,31]
[356530327,1742624943957,-64.7801634,0.000327,31]
[356530328,1742624943990,-130.53099778,0.000327,31]
[356530333,1742624974688,-22.13900222,0.000327,31]
[356530334,1742624974715,-152.67,0.000327,31]
[356530335,1742624974739,-152.67,0.000327,31]
[356530336,1742624974762,-430.9565,0.00032774,30]
[356530337,1742624981281,1804.9865,0.00024953,2]
[356530338,1742625002561,-178.72551259,0.00032774,30]
[356530339,1742625012412,178.72551259,0.00024953,2]
[356530687,1742625036163,-332.66940185,0.00032773,2]
[356531076,1742625041075,-0.08412583,0.00032773,2]
[356531157,1742625044280,-67.24647232,0.00032773,2]
[356531158,1742625044290,-13946.24176223,0.00032774,30]
[356531159,1742625044299,-351.40411945,0.00033,7]
[356531160,1742625044431,-934.9652683,0.00033,7]
[356531173,1742625065306,-208.30949799,0.000329,6]
[356531174,1742625065328,-75.63843339,0.00033,7]
[356531175,1742625077557,-165.03549918,0.00033,7]
[356531176,1742625080375,-151.0,0.00033,7]
[356531177,1742625086036,-261.38846657,0.00033,7]
[356531178,1742625087457,316.03549918,0.00024953,2]
[356531179,1742625088767,-207.7241269,0.00033,7]
[356531180,1742625091642,-165.03549918,0.00033,7]
[356531181,1742625122747,-275.08581269,0.00033,7]
[356531182,1742625132907,275.08581269,0.00024953,2]
[356531183,1742625134238,-150.37076383,0.00033,7]
[356531184,1742625148306,-151.43978675,0.00032876,7]
[356531185,1742625163720,-45.94406999,0.00032876,7]
[356531186,1742625163743,-104.05593001,0.00033,7]
[356531187,1742625178855,-150.0,0.00024953,2]
[356531188,1742625178879,-27.10636203,0.00033,7]
[356531189,1742625181951,-231.8342,0.00033,7]
[356531190,1742625189354,-176.22338134,0.00033,7]
[356531191,1742625197061,-157.1510105,0.000332,30]
[356531192,1742625198658,-271.0826162,0.00033,7]
[356531193,1742625200579,-216.89852702,0.00033,7]
[356531194,1742625213529,-269.3797874,0.00033,7]
[356531195,1742625219466,-153.0,0.00033809,30]
[356531196,1742625219488,-34.25236954,0.00033809,30]
[356531197,1742625241323,-177.298009,0.00033,7]
[356531198,1742625368037,-181.5599978,0.00024953,2]
[356531199,1742625374094,-400.0,0.00024953,2]
[356531204,1742625946293,-830.29609709,0.00024703,2]
[356531205,1742625946314,-615.36594218,0.00025404,2]
[356531206,1742625946335,-1381.0190849,0.00032266,2]
[356531207,1742625946357,-295.64339287,0.00032268,2]
[356531208,1742625946378,-400.0,0.00032699,2]
[356531209,1742625946404,-153.7,0.000327,31]
[356531210,1742625946429,-153.7,0.000327,31]
[356531211,1742625946455,-153.7,0.000327,31]
[356531212,1742625946480,-153.7,0.000327,31]
[356531213,1742625946505,-153.7,0.000327,31]
[356531214,1742625946530,-153.7,0.000327,31]
[356531215,1742625946556,-153.7,0.000327,31]
[356531216,1742625946581,-153.7,0.000327,31]
[356531217,1742625946602,-1221.4441804,0.0003274,2]
[356531218,1742625946624,-161.14922926,0.00032877,2]
[356531219,1742625946649,-208.37033411,0.000329,6]
[356531220,1742625946670,-887.47319751,0.00033,7]
[356531221,1742625946691,-197.38385674,0.00033111,7]
[356531222,1742625946713,-2658.36908686,0.00033144,2]
[356531223,1742626027096,-364.48584022,0.00033144,2]
[356532139,1742626240371,-0.00209153,0.00032699,2]
[356532344,1742626242346,-150.0,0.00032699,2]
[356532445,1742626243198,-249.99790847,0.00032699,2]
[356532447,1742626243208,-153.04,0.000327,31]
[356532449,1742626243217,-153.04,0.000327,31]
[356532451,1742626243227,-153.04,0.000327,31]
[356532453,1742626243236,-153.04,0.000327,31]
[356532455,1742626243245,-153.04,0.000327,31]
[356532457,1742626243255,-105.48146952,0.000327,31]
[356532724,1742626245871,-47.55853048,0.000327,31]
[356532725,1742626245881,-153.04,0.000327,31]
[356532726,1742626245890,-299.40146952,0.00033139,2]
[356532727,1742626245902,-111.21238958,0.00033139,2]
[356532728,1742626245912,-187.7342896,0.00033853,4]
[356532729,1742626245921,-426.62161257,0.00034,2]
[356532730,1742626245930,-295.2014004,0.00034315,2]
[356532880,1742626247498,150.0,0.00024953,2]
[356533146,1742626250526,-278.01943339,0.00034315,2]
[356533341,1742626255665,278.01943339,0.00024953,2]
[356533342,1742627153139,-785.21052269,0.00032,7]
[356533343,1742627153161,-400.0,0.00032699,2]
[356533344,1742627153185,-153.88,0.000327,31]
[356533345,1742627153209,-153.88,0.000327,31]
[356533346,1742627153233,-153.88,0.000327,31]
[356533347,1742627153258,-153.88,0.000327,31]
[356533348,1742627153281,-153.88,0.000327,31]
[356533349,1742627153305,-153.88,0.000327,31]
[356533350,1742627153328,-153.88,0.000327,31]
[356533351,1742627153352,-153.88,0.000327,31]
[356533352,1742627153375,-153.88,0.000327,31]
[356533353,1742627153394,-2127.5649159,0.0003273,2]
[356533354,1742627153416,-169.473224,0.00033037,2]
[356533355,1742627153435,-1426.77916621,0.00033315,2]
[356533356,1742627153455,-4264.56078035,0.00033485,2]
[356533357,1742627231089,-2720.0193174,0.00033485,2]
[356533414,1742627432538,-153.89,0.000327,31]
[356533415,1742627432548,-153.89,0.000327,31]
[356533416,1742627432557,-153.89,0.000327,31]
[356533417,1742627432567,-153.89,0.000327,31]
[356533418,1742627432576,-153.89,0.000327,31]
[356533419,1742627432585,-153.89,0.000327,31]
[356533420,1742627432595,-153.89,0.000327,31]
[356533421,1742627432605,-926.26378535,0.00033485,2]
[356533422,1742627432614,-501.971292,0.000343,15]
[356533423,1742627432623,-503.25867543,0.00034456,13]
[356533424,1742627432632,-500.0,0.00034456,13]
[356533425,1742627432642,-638.368675,0.000345,2]
[356533426,1742627432652,-500.0,0.00034502,13]
[356533427,1742627432661,-1049.04234278,0.00034558,7]
[356533428,1742627432671,-1274.16443381,0.00034564,16]
[356533429,1742627432681,-9309.51721392,0.00034564,16]
[356533430,1742627432690,-271.0826162,0.00034564,7]
[356533431,1742627432700,-394.97649644,0.00034564,7]
[356533432,1742627432709,-151.0,0.00034565,14]
[356533433,1742627432719,-236.735548,0.00034565,14]
[356533434,1742627432728,-2497.5,0.00034565,14]
[356533435,1742627432737,-2497.5,0.00034565,14]
[356533436,1742627432746,-5000.0,0.00034565,2]
[356533437,1742627432755,-3286.11880268,0.00034573,2]
[356533438,1742627432765,-1761.88300205,0.0003459,2]
[356533439,1742627432774,-234.25233554,0.00034599,2]
[356533440,1742627432783,-234.2523355,0.00034622,2]
[356533441,1742627432792,-234.2523355,0.00034644,2]
[356533442,1742627432802,-234.2523355,0.00034667,2]
[356533443,1742627432811,-351.75922718,0.00034673,5]
[356533444,1742627432820,-595.40047376,0.00034673,5]
[356533445,1742627432830,-386.70918312,0.00034673,5]
[356533446,1742627432839,-500.0,0.00034673,5]
[356533447,1742627432848,-500.0,0.00034673,5]
[356533448,1742627432858,-500.0,0.00034673,5]
[356533449,1742627432867,-500.0,0.00034673,5]
[356533450,1742627432876,-500.0,0.00034673,5]
[356533451,1742627432885,-500.0,0.00034673,5]
[356533452,1742627432895,-298.60244033,0.00034673,5]
[356533453,1742627432904,-500.0,0.00034673,5]
[356533454,1742627432913,-500.0,0.00034673,5]
[356533455,1742627432923,-500.0,0.00034673,5]
[356533456,1742627432932,-500.0,0.00034673,5]
[356533457,1742627432942,-151.0,0.00034673,14]
[356533458,1742627432951,-2497.5,0.00034673,14]
[356533459,1742627432960,-2497.5,0.00034673,14]
[356533460,1742627432970,-151.0,0.00034679,14]
[356533461,1742627432979,-1000.0,0.00034679,2]
[356533462,1742627432988,-600.0,0.00034679,2]
[356533463,1742627432997,-234.2523355,0.00034689,2]
[356533464,1742627433007,-151.0,0.0003469,14]
[356533465,1742627433016,-500.0,0.0003469,2]
[356533466,1742627433029,-2497.5,0.0003469,14]
[356533467,1742627433039,-2497.5,0.0003469,14]
[356533468,1742627433049,-8499.46706713,0.0003469,2]
[356533469,1742627433061,-6155.76684407,0.0003469,2]
[356533470,1742627433073,-1238.20953581,0.0003469,2]
[356533471,1742627433085,-5977.55893046,0.000347,2]
[356533513,1742627440484,-500.0,0.00034564,7]
[356533514,1742627440494,-252.21169668,0.00034689,7]
[356533515,1742627440503,-7861.4956794,0.000347,2]
[356533517,1742627442873,-200.0,0.000347,2]
[356533518,1742627443332,-5349.51283289,0.000347,2]
[356533519,1742627443468,-43671.76090124,0.000347,2]
[356533656,1742627455866,-178.9976,0.0003469,28]
[356533657,1742627456114,200.0,0.00024953,2]
[356533658,1742627464094,178.9976,0.00024953,2]
[356533664,1742628347095,-2465.3280149,0.00032184,2]
[356533665,1742628347117,-400.0,0.00032699,2]
[356533666,1742628347144,-153.9,0.000327,31]
[356533667,1742628347171,-153.9,0.000327,31]
[356533668,1742628347198,-153.9,0.000327,31]
[356533669,1742628347226,-153.9,0.000327,31]
[356533670,1742628347253,-153.9,0.000327,31]
[356533671,1742628347280,-153.9,0.000327,31]
[356533672,1742628347309,-153.9,0.000327,31]
[356533673,1742628347331,-198.0,0.000329,120]
[356533674,1742628347356,-831.37969383,0.000329,6]
[356533675,1742628347377,-353.90910137,0.00033318,2]
[356533676,1742628347399,-418.12010506,0.00033318,2]
[356533677,1742628347420,-1140.64182303,0.00033334,2]
[356533678,1742628347445,-250.0,0.00033343,2]
[356533679,1742628347466,-275.20911477,0.0003335,7]
[356533680,1742628347490,-500.0,0.0003335,7]
[356533681,1742628347514,-447.67665197,0.0003335,7]
[356533682,1742628347536,-6516.37370478,0.00033351,2]
[356533686,1742628429090,-1513.63787727,0.00033184,7]
[356533687,1742628429112,-1444.81033312,0.00033351,2]
[356533688,1742628438092,-2329.1729857,0.00033351,2]
[356533694,1742628493102,731.14213902,0.000125,2]
[356533697,1742628514330,269.3797874,0.00015,2]
[356533699,1742628546077,-1983.71201259,0.00024953,2]
[356533710,1742628605890,591.12131187,0.00024953,2]
[356533737,1742628632366,-250.0,0.00032667,2]
[356533739,1742628632375,-152.39,0.000327,31]
[356533741,1742628632385,-152.39,0.000327,31]
[356533743,1742628632394,-152.39,0.000327,31]
[356533745,1742628632404,-152.39,0.000327,31]
[356533747,1742628632414,-152.39,0.000327,31]
[356533749,1742628632423,-152.39,0.000327,31]
[356533751,1742628632433,-803.66703763,0.000329,6]
[356533753,1742628632443,-400.0,0.00033349,2]
[356533756,1742628632452,-4491.95034223,0.00033351,2]
[356533759,1742628632474,-7795.33849582,0.00033351,2]
[356534342,1742628638395,-2322.35413835,0.00033351,2]
[356534344,1742628638405,-803.66703736,0.00033486,6]
[356534346,1742628638415,-247.81875266,0.00034072,6]
[356534508,1742628643676,-555.8482847,0.00034072,6]
[356534510,1742628643686,-834.31595416,0.00034537,2]
[356534512,1742628643696,-500.0,0.00034573,5]
[356534513,1742628643705,-269.21998576,0.00034573,5]
[356534526,1742628728919,1887.14774629,0.00024953,2]
[356534527,1742628733224,500.0,0.00027397,5]
[356534528,1742628733276,1000.0,0.00028767,5]
[356534529,1742629540127,-500.0,0.00027397,5]
[356534530,1742629540147,-478.30206851,0.00028767,5]
[356534531,1742629540166,-1768.3416445,0.00032323,2]
[356534532,1742629540187,-290.47016418,0.00032394,2]
[356534533,1742629556090,-109.52983582,0.00032394,2]
[356534534,1742629556112,-4071.46232224,0.00032395,2]
[356534535,1742629630245,-2373.61960463,0.00032395,2]
[356534536,1742629653090,-3554.91807313,0.00032395,2]
[356534537,1742629653112,-400.0,0.00032699,2]
[356534538,1742629653145,-152.48,0.000327,31]
[356534539,1742629653173,-113.9129,0.000327,31]
[356534540,1742629677872,450.0,0.00018,2]
[356534560,1742629832690,-428.01943339,0.00032412,2]
[356534561,1742629832699,-364.4858402,0.00032619,2]
[356534562,1742629832709,-154.01,0.000327,31]
[356534563,1742629832718,-154.01,0.000327,31]
[356534564,1742629832728,-154.01,0.000327,31]
[356534565,1742629832737,-154.01,0.000327,31]
[356534566,1742629832746,-154.01,0.000327,31]
[356534567,1742629832755,-154.01,0.000327,31]
[356534568,1742629832764,-200.0,0.00032739,2]
[356534569,1742629832773,-160.0,0.00032818,2]
[356534570,1742629832783,-6228.39441381,0.000329,2]
[356534571,1742629832791,-1302.41928071,0.000329,6]
[356534572,1742629832800,-422.0,0.00032907,2]
[356534573,1742629832809,-4202.50025447,0.00032907,2]
[356534574,1742629832821,-7564.27040993,0.00032907,2]
[356534600,1742629838622,-1538.53927249,0.00032907,2]
[356534604,1742629840768,-691.75494502,0.00032907,2]
[356534610,1742629843663,-464.55468423,0.00032907,2]
[356534645,1742630730095,-63083.0709145,0.00025,14]
[356534646,1742630853098,-176.54818767,0.00024999,2]
[356534647,1742630853122,-5254.29497201,0.00025,14]
[356534648,1742630950142,-300.0,0.00023999,2]
[356534649,1742630950183,-5605.75845206,0.00024,120]
[356534650,1742630952137,-4512.24154794,0.00024,120]
[356534651,1742630952160,-5862.0935645,0.0002499,2]
[356534652,1742630952182,-565.18806338,0.0002499,2]
[356534653,1742630952202,-17009.91845587,0.00025,14]
[356534654,1742630957134,-122498.30057105,0.00025,14]
[356534655,1742630959095,-9397.57578462,0.00025,14]
[356534656,1742630966071,-22756.83930195,0.00025,14]
[356534657,1742630966092,-2897.33395042,0.000258,2]
[356534658,1742630966116,-1259.00530458,0.000259,4]
[356534659,1742630966138,-1259.00530451,0.00026728,4]
[356534660,1742630966160,-1259.00530451,0.00027555,4]
[356534661,1742630966182,-1259.00530451,0.00028383,5]
[356534662,1742630966202,-2897.33395041,0.00029144,2]
[356534663,1742630966223,-1259.00530451,0.0002921,5]
[356534665,1742631007781,500.0,0.00024973,2]
[356534666,1742631008271,500.0,0.00024973,2]
[356534667,1742631014022,500.0,0.00024973,2]
[356534702,1742631038513,-1000.0,0.00030452,5]
[356534703,1742631038524,-1000.0,0.00030452,5]
[356534704,1742631038534,-1000.0,0.00030452,5]
[356534705,1742631038543,-726.3555605,0.00031685,2]
[356534706,1742631038553,-2931.04678225,0.00032307,2]
[356534707,1742631038563,-282.59403169,0.00032307,2]